[Event "SixDays Budapest March IM 2023"]
[Site "Budapest"]
[Date "2023.03.25"]
[Round "3.2"]
[White "Horvath, David"]
[Black "Balogh, Peter"]
[Result "1/2-1/2"]
[ECO "A04"]
[WhiteElo "2380"]
[BlackElo "2264"]
[Annotator "TA"]
[PlyCount "99"]
[EventDate "2023.03.24"]
[EventType "tourn"]
[EventCountry "HUN"]
[SourceTitle "playchess.com"]
[Source "ChessBase"]
[SourceQuality "1"]
[TimeControl "5400+30"]

{[%evp 9,99,20,25,17,10,22,22,12,14,18,9,9,15,12,43,6,11,16,10,5,7,12,58,48,47,40,34,24,21,27,38,26,118,119,126,113,110,112,166,184,175,166,181,169,164,155,146,151,170,146,238,237,232,223,268,262,329,252,242,183,257,253,264,236,642,583,508,237,421,162,394,217,191,118,105,14,56,0,0,3,4,5,5,5,4,0,0,0,0,0,0,0]} 1. Nf3 {[%emt 0:00:58]} Nc6 {[%emt 0:02:00]} 2. d4 {[%emt 0:00:12]} d5 {[%emt 0:01:39]} 3. c4 {[%emt 0:00:04]} Bg4 {[%emt 0:02:05]} 4. Nc3 {[%emt 0:00:03]} e6 {[%emt 0:03:35]} 5. Bg5 {[%emt 0:02:13]} Be7 {[%emt 0:02:31]} 6. Bxe7 {[%emt 0:00:05] D07: Queen's Gambit: Chigorin Defence.} Ngxe7 {[%emt 0:00:39]} 7. e3 {[%emt 0:01:00]} O-O {[%emt 0:01:50]} 8. cxd5 {[%emt 0:03:48]} Nxd5 {[%emt 0:00:38]} 9. Be2 {[%emt 0:00:05]} Nxc3 {[%emt 0:04:23]} 10. bxc3 {[%emt 0:00:05]} Qd6 {[%emt 0:02:22]} 11. O-O {[%emt 0:00:10]} Rad8 {[%emt 0:02:24] [#]} 12. Rb1 $146 {[%emt 0:27:45]} ({Predecessor:} 12. h3 Bf5 13. Bd3 Bg6 14. Bxg6 hxg6 15. Qa4 b6 16. Qb5 Rfe8 17. Rfd1 Qd5 18. c4 Qxb5 19. cxb5 {1-0 Mirzoev,E (2424)-Bordovsky,V (2425) Lutsk Nebesna Sotnya Memorial rap rapid 2016 (10)}) 12... b6 {[%emt 0:03:38]} 13. h3 {[%emt 0:07:42]} Bf5 {[%emt 0:04:40]} 14. Bd3 {[%emt 0:01:24]} Bxd3 {[%emt 0:02:12]} 15. Qxd3 {[%emt 0:00:02]} Qa3 {[%emt 0:04:16]} (15... Na5 $11 {feels stronger.}) 16. Ng5 $14 {[%emt 0:08:47][%csl Gg5][%cal Rd3h7]} g6 {[%emt 0:04:51]} 17. Qc4 $36 {[%emt 0:17:41][%mdl 2048] Black is under pressure.} Ne7 {[%emt 0:08:44]} 18. Qb4 {[%emt 0:01:04]} Qxb4 {[%emt 0:08:05]} 19. cxb4 {[%emt 0:00:02]} c6 {[%emt 0:04:48]} 20. Rfc1 {[%emt 0:00:07]} e5 {[%emt 0:00:52]} 21. dxe5 $16 {[%emt 0:08:49] White is more active.} Rd2 {[%emt 0:03:15]} 22. a3 {[%emt 0:01:39]} Rfd8 {[%emt 0:01:59]} 23. Rc3 {[%emt 0:07:52]} Rd1+ {[%emt 0:06:27]} (23... Re2 $16 24. Ne4 Kf8) 24. Rxd1 $18 {[%emt 0:00:02]} Rxd1+ {[%emt 0:00:17][%mdl 4096] Endgame KRN-KRN} 25. Kh2 {[%emt 0:00:03]} Rd5 {[%emt 0:00:23] [#]} 26. f4 {[%emt 0:08:19]} a5 {[%emt 0:04:52]} 27. bxa5 {[%emt 0:00:14]} Rxa5 {[%emt 0:00:18]} 28. Ne4 {[%emt 0:00:07]} Kg7 {[%emt 0:00:40]} 29. Nf6 {[%emt 0:00:22]} Ra8 {[%emt 0:08:02]} (29... h5 $16 30. Ne8+ Kf8) 30. g4 {[%emt 0:00:41]} h6 {[%emt 0:00:58]} 31. Kg3 {[%emt 0:01:01]} c5 {[%emt 0:01:18]} 32. Kf3 {[%emt 0:00:49]} Rc8 {[%emt 0:03:16]} 33. Ke4 {[%emt 0:00:57]} b5 {[%emt 0:01:32]} 34. f5 {[%emt 0:01:49]} gxf5+ {[%emt 0:00:54]} (34... Ra8 $142 35. fxg6 (35. Rxc5 gxf5+ 36. gxf5 Ra4+ 37. Kf3 Nxf5 $16) 35... Ra4+ 36. Kd3 (36. Kf3 c4 $16) 36... Nxg6 37. Nh5+ (37. Rxc5 Nxe5+ 38. Rxe5 Rxa3+ 39. Ke4 Kxf6 $16) 37... Kf8) 35. gxf5 {[%emt 0:00:02] And now Nd7 would win.} Ra8 {[%emt 0:00:38]} 36. Kf4 {[%emt 0:00:08]} (36. Rxc5 Ra4+ 37. Kf3 Nxf5 $16) (36. Nh5+ $6 Kh7 $18) 36... b4 $2 {[%emt 0:00:34]} (36... c4 37. e4 Rc8) 37. axb4 {[%emt 0:00:22]} (37. Rxc5 bxa3 38. Rc1 a2 $11) 37... cxb4 {[%emt 0:00:21]} 38. Rc1 {[%emt 0:00:46]} (38. Rc7 $142 Kf8 39. Rb7) 38... b3 $2 {[%emt 0:01:20]} (38... Ra7 39. Rg1+ Kf8) 39. Rb1 $2 {[%emt 0:00:36]} (39. Rc7 Ra1 40. Rxe7 Rf1+ 41. Kg4 (41. Ke4 b2 $11) 41... h5+ 42. Nxh5+ (42. Kxh5 b2 $18) 42... Kf8 43. Rb7 Ke8 44. Nf6+ Kd8 45. Rxf7) 39... Ra2 $2 {[%emt 0:00:26]} (39... Rb8 40. Nd7 Rb4+ 41. e4 Kh7) 40. e4 {[%emt 0:00:48]} ({Weaker is} 40. Rxb3 Rf2+ 41. Ke4 Nxf5 42. Nh5+ Kg6 $18) (40. Nh5+ $142 Kh7 41. Rxb3 Rf2+ 42. Ke4 Nxf5 43. Rb7) 40... b2 {[%emt 0:00:53]} 41. Nd7 {[%emt 0:00:30]} ({Better is} 41. h4 $18) 41... Nc6 $16 {[%emt 0:01:13]} 42. f6+ {[%emt 0:01:00]} ({White should play} 42. Ke3 $16 {Black must now prevent f6+.} Ra3+ 43. Kd2) 42... Kg6 $11 {[%emt 0:00:58] [#]} 43. e6 {[%emt 0:00:05]} fxe6 {[%emt 0:00:32] The position is equal.} 44. Rg1+ {[%emt 0:00:07]} Kh5 $1 {[%emt 0:01:02] ...Ra1 is the strong threat.} 45. f7 {[%emt 0:00:21]} b1=Q $1 {[%emt 0:00:28]} 46. Rxb1 {[%emt 0:01:02]} ({Don't play} 46. Nf6+ Kh4 47. Rg4+ Kxh3 48. Rg3+ Kh2 49. Ng4+ Kh1 50. Rh3+ Kg1 51. Rg3+ Rg2 52. Rxg2+ Kxg2 $17) 46... Rf2+ {[%emt 0:00:18]} 47. Kg3 {[%emt 0:00:19]} Rxf7 {[%emt 0:00:08]} 48. Rb5+ {[%emt 0:00:33]} Kg6 {[%emt 0:00:36]} 49. Nc5 {[%emt 0:00:11]} Nd4 {[%emt 0:01:11]} 50. Rb4 {[%emt 0:01:06] White really could win this.   Weighted Error Value: White=0.35/Black=0.36} 1/2-1/2

[Event "SixDays Budapest March IM 2023"]
[Site "Budapest"]
[Date "2023.03.25"]
[Round "3.3"]
[White "Neszmenyi, Zoltan"]
[Black "Halak, Miklos"]
[Result "0-1"]
[ECO "A06"]
[WhiteElo "1885"]
[BlackElo "2257"]
[Annotator "TA"]
[PlyCount "106"]
[EventDate "2023.03.24"]
[EventType "tourn"]
[EventCountry "HUN"]
[SourceTitle "playchess.com"]
[Source "ChessBase"]
[SourceQuality "1"]
[TimeControl "5400+30"]

{[%evp 9,106,7,11,7,8,0,0,0,25,0,0,-10,0,-22,-23,-31,-25,-31,-17,-89,-6,0,0,0,11,11,10,-78,63,25,27,0,0,0,0,-38,-37,-36,-35,-26,-31,-32,-41,-70,0,-35,-50,-99,-116,-103,-83,-79,-81,-122,-125,-132,-118,-152,-70,-209,-199,-207,-214,-214,0,-389,-387,-366,-252,-356,-259,-345,-313,-312,-310,-311,-306,-298,-303,-284,-241,-229,-224,-204,-204,-188,-127,-289,-293,-291,-283,-987,-987,-29977,-29980,-29979,-29980,-29979,-29972]} 1. Nf3 {[%emt 0:00:34]} d5 {[%emt 0:01:00]} 2. d4 {[%emt 0:00:07]} e6 {[%emt 0:00:12]} 3. c4 {[%emt 0:00:12]} a6 {[%emt 0:00:11]} 4. e3 {[%emt 0:01:00]} Nf6 {[%emt 0:01:07]} 5. Nc3 {[%emt 0:00:20]} b6 {[%emt 0:00:59]} 6. b3 {[%emt 0:05:15] D30: Queen's Gambit Declined: Systems without Nc3.} Bb7 {[%emt 0:00:46]} 7. Bd3 {[%emt 0:01:01]} Bd6 {[%emt 0:01:18]} 8. O-O {[%emt 0:00:36] The position is equal.} O-O {[%emt 0:00:31]} 9. Re1 {[%emt 0:02:46]} Ne4 {[%emt 0:02:42]} 10. Bb2 {[%emt 0:09:22]} Nd7 {[%emt 0:04:32] [#]} 11. h3 $146 {[%emt 0:08:14]} ({Predecessor:} 11. a3 f5 12. b4 dxc4 13. Bxc4 Qe7 14. Nxe4 fxe4 15. Ne5 Bxe5 16. dxe5 Rf5 17. Ra2 b5 {0-1 Timofeev,A (2583)-Khismatullin,D (2627) RUS-ch Higher League 71st 2018 (8)}) 11... f5 {[%emt 0:01:49]} 12. Ne2 {[%emt 0:11:15]} Qf6 {[%emt 0:07:55]} 13. Nf4 {[%emt 0:13:18]} Rae8 {[%emt 0:16:14]} 14. Be2 {[%emt 0:03:20]} (14. cxd5 $11 {keeps the balance.} exd5 15. h4) 14... Bb4 {[%emt 0:13:03]} ({Black should play} 14... dxc4 $17 {And now ...c3 would win.} 15. Bxc4 g5) 15. Rf1 $11 {[%emt 0:02:21]} Bc3 {[%emt 0:01:13]} 16. Qc2 {[%emt 0:03:53]} Bxb2 {[%emt 0:01:14]} 17. Qxb2 {[%emt 0:00:09]} dxc4 {[%emt 0:05:42]} 18. Bxc4 {[%emt 0:02:43]} (18. bxc4 $11 {remains equal.} e5 19. dxe5 Nxe5 20. Nxe5 Qxe5 21. Qxe5 Rxe5 22. Rad1) 18... b5 {[%emt 0:04:58]} (18... g5 $17 19. Nxe6 Rxe6) 19. Be2 {[%emt 0:01:45]} c5 {[%emt 0:04:12]} 20. Nd3 {[%emt 0:01:38]} cxd4 {[%emt 0:02:36]} 21. exd4 {[%emt 0:02:36]} (21. Qxd4 {keeps more tension.} Nc3 22. Bd1 Be4 23. Nf4) 21... Ng5 {[%emt 0:06:03]} 22. Nde5 {[%emt 0:02:31]} Nxe5 {[%emt 0:09:08]} 23. dxe5 {[%emt 0:00:27]} Qg6 {[%emt 0:00:06]} 24. Nxg5 {[%emt 0:01:22]} Qxg5 {[%emt 0:00:48][%csl Gb7][%cal Rg5g2]} 25. f3 $1 {[%emt 0:01:52]} Qe3+ {[%emt 0:04:06]} 26. Rf2 {[%emt 0:00:44]} f4 {[%emt 0:01:51]} (26... Rc8 $15) 27. Rd1 {[%emt 0:05:34]} Rd8 {[%emt 0:02:17]} 28. Rxd8 {[%emt 0:07:05]} ({Don't play} 28. Rd6 Rxd6 29. exd6 Rd8 $17) (28. Qb1 $15 {should be considered.}) 28... Rxd8 $17 {[%emt 0:00:06]} 29. Bf1 {[%emt 0:00:36]} Rd5 {[%emt 0:02:13] Black has more active pieces.} (29... Rd1 {seems wilder.} 30. Qc2 Rc1 31. Qd2 Bc6) 30. Kh2 {[%emt 0:02:00]} Qxe5 {[%emt 0:00:34]} (30... Rxe5 $2 31. Re2 $18) 31. Qc1 {[%emt 0:04:12] White is weak on the dark squares} Qd6 {[%emt 0:02:30]} 32. a4 {[%emt 0:01:23]} Rd1 {[%emt 0:02:02]} 33. Qc3 {[%emt 0:01:42]} Qb6 {[%emt 0:00:55]} (33... b4 $1 $17 {[%cal Rb4c3]} 34. Qc2 Qd4) 34. Qc2 {[%emt 0:01:10] [#]} (34. Be2 $1 $15) 34... Qd4 $1 $19 {[%emt 0:01:00]} 35. axb5 {[%emt 0:01:12]} axb5 {[%emt 0:00:18]} 36. b4 {[%emt 0:03:21] [#]} Bd5 $2 {[%emt 0:01:41]} ({Better is} 36... h6 $1 $19 {Threatens to win with ...Kf8.} 37. h4 Kh8) 37. Qc5 $2 {[%emt 0:00:46][%mdl 8192]} (37. Bxb5 $11 g6 38. Qc8+ Kg7 39. Rf1 Rxf1 40. Qc7+ Kh6 41. Bxf1) 37... Qxc5 {[%emt 0:00:26]} 38. bxc5 {[%emt 0:00:05][%mdl 4096] Endgame KRB-KRB} Bc6 {[%emt 0:00:23]} 39. Kg1 {[%emt 0:00:54]} (39. g3 $142) 39... Rc1 {[%emt 0:00:20][%cal Ob5b4]} 40. Re2 {[%emt 0:00:35]} Kf7 {[%emt 0:00:31] White must now prevent ...Bd5.} ({Weaker is} 40... Rxc5 41. Rxe6 Kf7 42. Re2 $17) 41. Kf2 {[%emt 0:00:32]} Rxc5 {[%emt 0:00:11]} 42. Rb2 {[%emt 0:00:18]} e5 {[%emt 0:01:04]} 43. Bd3 {[%emt 0:00:27]} h6 {[%emt 0:00:25]} 44. Ra2 {[%emt 0:00:30]} Rc3 {[%emt 0:00:41]} 45. Ke2 {[%emt 0:00:30]} Rb3 {[%emt 0:00:33]} 46. Kd2 {[%emt 0:00:38]} Bd5 {[%emt 0:00:15][%cal Ob3d3]} 47. Ra7+ {[%emt 0:00:18]} Kf8 {[%emt 0:00:11]} (47... Kf6 $19 {Strongly threatening ...Rb2+.} 48. Ra6+ Ke7) 48. Rd7 $2 {[%emt 0:00:37]} (48. Kc2 $17 {might work better.}) 48... Be6 {[%emt 0:00:21]} 49. Rb7 {[%emt 0:00:32]} Rb2+ {[%emt 0:00:39][%mdl 64] Skewer} 50. Bc2 $2 {[%emt 0:00:36]} (50. Kc3 Rxg2 51. h4) 50... Bf5 {[%emt 0:00:30]} 51. Rc7 {[%emt 0:00:03]} Rxc2+ {[%emt 0:00:28] Black mates.} 52. Rxc2 {[%emt 0:00:07]} Bxc2 {[%emt 0:00:03]} 53. Kxc2 {[%emt 0:00:06]} Ke7 {[%emt 0:00:04] Weighted Error Value: White=0.65/Black=0.23 (precise)} 0-1

[Event "SixDays Budapest March IM 2023"]
[Site "Budapest"]
[Date "2023.03.25"]
[Round "3.4"]
[White "Szeberenyi, Adam"]
[Black "Gandhi, Anish"]
[Result "1/2-1/2"]
[ECO "D41"]
[WhiteElo "2338"]
[BlackElo "2187"]
[Annotator "TA"]
[PlyCount "105"]
[EventDate "2023.03.24"]
[EventType "tourn"]
[EventCountry "HUN"]
[SourceTitle "playchess.com"]
[Source "ChessBase"]
[SourceQuality "1"]
[TimeControl "5400+30"]

{[%evp 26,105,0,0,8,0,17,0,0,0,0,-8,0,-26,-7,-33,-43,-49,0,0,14,0,0,0,11,5,0,0,16,0,0,0,20,0,0,0,0,0,0,0,0,0,29960,29959,29967,29969,29966,29961,29969,29972,29972,157,141,141,141,141,148,147,156,157,157,157,200,200,200,200,200,200,200,200,200,200,200,200,202,202,202,0,0,0,0,0]} 1. d4 {[%emt 0:00:33]} Nf6 {[%emt 0:00:54]} 2. c4 {[%emt 0:00:02]} e6 {[%emt 0:00:05]} 3. Nf3 {[%emt 0:00:08]} d5 {[%emt 0:00:09]} 4. Nc3 {[%emt 0:00:07]} c5 {[%emt 0:00:06]} 5. cxd5 {[%emt 0:00:33]} Nxd5 {[%emt 0:00:09]} 6. e4 {[%emt 0:00:55]} Nxc3 {[%emt 0:00:17]} 7. bxc3 {[%emt 0:00:04]} cxd4 {[%emt 0:00:08]} 8. cxd4 {[%emt 0:05:35]} Bb4+ {[%emt 0:00:08]} 9. Bd2 {[%emt 0:00:04]} Bxd2+ {[%emt 0:00:10]} 10. Qxd2 {[%emt 0:00:05]} O-O {[%emt 0:00:06]} 11. Bc4 {[%emt 0:01:00]} Nd7 {[%emt 0:00:16]} 12. O-O {[%emt 0:00:37]} b6 {[%emt 0:00:07]} 13. Rad1 {[%emt 0:16:46]} Bb7 {[%emt 0:00:13]} 14. Rfe1 {[%emt 0:00:12]} Rc8 {[%emt 0:00:08] D41: Queen's Gambit Declined: Semi-Tarrasch with 5 cxd5.} 15. Bd3 {[%emt 0:04:24]} Qc7 {[%emt 0:00:15]} 16. h4 {[%emt 0:06:12] [#]} (16. Rc1 $5 {[%cal Rc1c7]} Qb8 17. Qb2 $11) 16... Rfd8 $146 {[%emt 0:03:35]} ({Predecessor:} 16... h6 17. Rc1 Qd6 18. Qe3 Rxc1 19. Rxc1 Rc8 20. Rxc8+ Bxc8 21. Qc1 Bb7 22. a4 Qc6 {0-1 Mihajlov,S (2387)-Dominguez Perez,L (2763) Chess24 Banter Blitz Cup 2019 (1.1)}) 17. Rc1 {[%emt 0:04:00]} Qd6 {[%emt 0:02:48]} 18. e5 {[%emt 0:13:04]} Qe7 {[%emt 0:00:38]} 19. Qf4 {[%emt 0:04:58]} Nf8 {[%emt 0:01:59]} (19... Bxf3 {looks sharper.} 20. Qxf3 Qxh4 21. Rxc8 Rxc8 22. Qb7 Qd8) 20. Rxc8 {[%emt 0:09:20]} Rxc8 {[%emt 0:03:44]} 21. h5 {[%emt 0:00:25]} Bxf3 {[%emt 0:20:06]} (21... h6 $15) 22. Qxf3 $11 {[%emt 0:01:59]} h6 {[%emt 0:00:10] Black is weak on the light squares} 23. Be4 {[%emt 0:12:17]} Qb4 {[%emt 0:05:58][%csl LRd4,LRe1]} 24. Rd1 {[%emt 0:00:41]} Qb2 {[%emt 0:00:20]} 25. Qb3 $1 {[%emt 0:07:35]} Qxb3 {[%emt 0:15:09]} 26. axb3 {[%emt 0:00:03][%mdl 4096] Endgame KRB-KRN} a5 {[%emt 0:00:04]} 27. d5 {[%emt 0:00:34]} exd5 {[%emt 0:01:28]} 28. Rxd5 {[%emt 0:00:21]} Rc5 {[%emt 0:02:33]} 29. f4 {[%emt 0:02:57]} Rxd5 {[%emt 0:03:42]} 30. Bxd5 {[%emt 0:00:04]} Ne6 {[%emt 0:00:03]} 31. Bxe6 {[%emt 0:04:07]} fxe6 {[%emt 0:00:06] KP-KP} 32. Kf2 {[%emt 0:00:08] Strongly threatening Ke3.} Kf7 {[%emt 0:27:05]} 33. Ke3 {[%emt 0:00:23] Kd4 would be deadly.} Ke7 $2 {[%emt 0:05:45][%mdl 8192]} (33... g6 $11 34. hxg6+ Kxg6) 34. Kd4 {[%emt 0:01:02]} Kd7 {[%emt 0:03:00]} 35. g4 {[%emt 0:00:14]} Kc6 {[%emt 0:01:55]} 36. f5 {[%emt 0:00:14]} exf5 {[%emt 0:00:17]} 37. gxf5 {[%emt 0:00:05]} b5 {[%emt 0:00:04] [#]} 38. e6 $2 {[%emt 0:00:18]} ({And not} 38. f6 gxf6 39. exf6 Kd6 $11) (38. Ke4 $1 {mates} Kd7 39. Kd5 a4 40. bxa4 bxa4 41. Kc4 (41. f6 {leads to mate.} gxf6 42. e6+ Ke7 43. Kd4 Kxe6 44. Kd3 f5 45. Kd4 a3 46. Kc3 f4 47. Kc2 Kd5 48. Kc3 a2 49. Kb2 f3 50. Ka1 f2 51. Kxa2 Kc4 52. Kb2 f1=Q 53. Kc2 Qf2+ 54. Kd1 Kd3 55. Kc1 Qc2#) 41... Kd8 42. Kb4 a3 43. Kxa3) 38... Kd6 $16 {[%emt 0:00:24]} 39. Ke4 {[%emt 0:00:26]} Ke7 {[%emt 0:04:05] [#]} 40. Kd5 $1 {[%emt 0:00:17]} a4 {[%emt 0:00:11]} 41. bxa4 {[%emt 0:00:07]} bxa4 {[%emt 0:00:05] ( -> ...a3). K3P-K3P} 42. Kc4 {[%emt 0:00:12]} Kf6 {[%emt 0:00:17]} 43. Kb4 {[%emt 0:00:28]} g6 {[%emt 0:00:25]} 44. fxg6 {[%emt 0:06:31]} Kxe6 {[%emt 0:00:07]} 45. Kxa4 $18 {[%emt 0:00:04] KPP-KP} Kf6 {[%emt 0:00:08]} 46. Kb4 {[%emt 0:00:04]} Kg7 {[%emt 0:00:10]} 47. Kc5 {[%emt 0:00:04]} Kg8 {[%emt 0:00:24]} 48. Kd6 {[%emt 0:00:06]} Kg7 {[%emt 0:00:03]} 49. Ke6 {[%emt 0:00:03]} Kg8 {[%emt 0:00:14]} 50. Kf6 {[%emt 0:00:07]} Kh8 {[%emt 0:00:18]} 51. g7+ $2 {[%emt 0:01:07]} (51. Ke5 $18) 51... Kg8 $11 {[%emt 0:00:21]} 52. Ke6 {[%emt 0:00:27]} Kxg7 {[%emt 0:00:06]} 53. Ke7 {[%emt 0:00:02] Weighted Error Value: White=0.22 (precise) /Black=0.24 (precise)} 1/2-1/2

[Event "SixDays Budapest March IM 2023"]
[Site "Budapest"]
[Date "2023.03.25"]
[Round "3.5"]
[White "Udvardi, Zalan"]
[Black "Ulasevich, Sergei"]
[Result "1-0"]
[ECO "B22"]
[WhiteElo "2260"]
[BlackElo "2236"]
[Annotator "TA"]
[PlyCount "63"]
[EventDate "2023.03.24"]
[EventType "tourn"]
[EventCountry "HUN"]
[SourceTitle "playchess.com"]
[Source "ChessBase"]
[SourceQuality "1"]
[TimeControl "5400+30"]

{[%evp 20,63,2,0,16,9,35,6,29,5,152,149,155,154,161,154,160,142,188,120,146,158,155,143,140,127,227,224,392,208,207,203,339,310,306,217,252,160,270,269,590,546,720,748,29987,29986]} 1. e4 {[%emt 0:00:32]} c5 {[%emt 0:00:52]} 2. c3 {[%emt 0:00:28]} Nf6 {[%emt 0:00:11]} 3. e5 {[%emt 0:00:02]} Nd5 {[%emt 0:00:05]} 4. d4 {[%emt 0:00:08]} cxd4 {[%emt 0:00:09]} 5. Nf3 {[%emt 0:00:04]} Nc6 {[%emt 0:00:28]} 6. cxd4 {[%emt 0:00:05]} d6 {[%emt 0:00:09]} 7. Bc4 {[%emt 0:00:27]} Nb6 {[%emt 0:00:16]} 8. Bb3 {[%emt 0:01:53]} dxe5 {[%emt 0:04:09]} 9. d5 {[%emt 0:00:24]} Na5 {[%emt 0:00:07]} 10. Nc3 {[%emt 0:00:11]} Nxb3 {[%emt 0:02:20]} 11. Qxb3 {[%emt 0:00:07]} f6 {[%emt 0:03:41] B22: Sicilian: 2 c3.} 12. Be3 $1 {[%emt 0:01:44][%mdl 1024] White has compensation.} g6 {[%emt 0:04:27]} 13. Rc1 {[%emt 0:01:54] Black must now prevent Nb5.} Bd7 {[%emt 0:07:29] The position is equal.} 14. O-O {[%emt 0:07:37] [#]} h5 $146 {[%emt 0:04:25] [#]} (14... Bg7 $11) ({Predecessor:} 14... Bg7 15. a4 Nc8 16. Ne4 O-O 17. d6+ Kh8 18. dxe7 Qxe7 19. Bc5 Qf7 20. Qxb7 Nb6 21. Bxf8 Rxf8 22. Rc7 Be6 23. Rxf7 Rb8 24. Qxb8+ Bf8 25. Qxf8# {1-0 Grahn,V (2067)-Buchert,M (1415) Uppsala Young Champions 9th 2022 (7)}) 15. d6 $1 $16 {[%emt 0:05:49][%mdl 512]} exd6 {[%emt 0:05:44]} (15... Rc8 16. Nh4) 16. Nh4 $1 {[%emt 0:00:15] White is much more active. The black rooks are badly placed.} d5 {[%emt 0:14:28]} (16... g5 $2 17. Ng6 $18) 17. Nxg6 {[%emt 0:03:07]} (17. Nxd5 Nxd5 18. Qxd5 Bc6 $11) 17... Rg8 {[%emt 0:01:00]} 18. Nxf8 {[%emt 0:00:34]} Kxf8 {[%emt 0:00:38]} (18... Bh3 $16 {was called for.}) 19. Bxb6 {[%emt 0:12:03]} (19. Nxd5 Nxd5 20. Qxd5 Bc6 21. Qc5+ (21. Bh6+ Ke7 $11) 21... Kg7 $11) ({White should play} 19. f4 $1 $18 {[%cal Rf4e5]} Kg7 20. fxe5 (20. Nxd5 Be6 $11) 20... fxe5 21. Rce1 (21. Nxd5 Be6 $14)) 19... Qxb6 {[%emt 0:01:36] [#]} 20. Qa3+ {[%emt 0:01:16]} (20. Qxd5 Bh3 21. g3 (21. Na4 $2 Qd8 $19) 21... Bxf1 22. Rxf1 h4 $17) (20. Nxd5 Qxb3 21. axb3 Bc6 $15) 20... Kf7 {[%emt 0:04:24]} 21. Nxd5 {[%emt 0:00:06]} Qe6 {[%emt 0:03:56] [#] Wards off Qe7+} 22. Qf3 {[%emt 0:03:28] Dancing on a razor blade.} Qf5 {[%emt 0:16:46]} (22... Bc6 $16 23. Qxh5+ Kf8) 23. Qb3 $18 {[%emt 0:02:50] And now f4 would win.} (23. Qa3 Bc6 24. Qe7+ Kg6 $14) 23... Rac8 $2 {[%emt 0:15:11]} (23... Rad8 24. Ne3+ (24. Qxb7 Rxg2+ 25. Kh1 Qh3) 24... Qe6) 24. Ne3+ {[%emt 0:04:31]} (24. Qxb7 {leads to mate.} Rxg2+ 25. Kh1 Rg1+ 26. Kxg1 Rg8+ 27. Kh1 Qf3#) (24. Rxc8 $142 {Nc7+ would kill now.} Rxc8 25. Nb6+ {[%mdl 64] Discovered Attack} (25. Qxb7 Qe6 $18) 25... Qe6 26. Nxc8 {[%mdl 64] Discovered Attack} (26. Nxd7 Qxb3 27. axb3 Ke7 $11) 26... Qxb3 27. axb3 Bxc8 28. Rc1) 24... Qe6 {[%emt 0:00:01]} 25. Qxb7 {[%emt 0:00:11] Rxc8 is the strong threat.} Rb8 {[%emt 0:03:53]} (25... Qe7 {keeps fighting.} 26. a4 (26. Qxa7 Bb5 $18) 26... f5 27. Rxc8 (27. Qxa7 f4 $16) 27... Rxc8 28. Qxa7 Be6) 26. Qf3 {[%emt 0:02:20]} Kg6 {[%emt 0:00:26]} 27. b3 {[%emt 0:07:20]} Rgc8 {[%emt 0:00:11]} 28. Nc4 {[%emt 0:02:59][%cal Be3c4,Bc4d6,Bd6f7][%mdl 32]} Bc6 {[%emt 0:00:30]} (28... Qg4 $16) 29. Qd3+ {[%emt 0:01:00]} Kh6 $2 {[%emt 0:01:22]} (29... e4 {is more resistant.} 30. Qg3+ Kh7) 30. Nd6 {[%emt 0:01:13]} Qg4 {[%emt 0:05:10][%csl Gc6][%cal Rg4g2]} 31. f3 {[%emt 0:05:58]} Qg5 {[%emt 0:00:42]} 32. Nf7+ {[%emt 0:00:09][%mdl 64] Deflection, Double Attack.   Weighted Error Value: White=0.31/Black=0.95} 1-0